Cogmind - Beta 13 X1 @@@ ROGUE MODE // 2023.07.19 @ 02:36:06 Player: albenzo Result: Destroyed by D-53 Grenadier with Mini Grenade Launcher Performance ------------- Evolutions (1) 500 Regions Visited (4) 800 Robots Destroyed (150) 750 Value Destroyed (2928) 2928 Prototype IDs (3) 60 Alien Tech Used (0) 0 Bonus (596) 596 TOTAL SCORE: 5634 Bonus ------- High Alert Combat Kills 596 Cogmind --------- Core Integrity 0/400 Matter 285/300 Energy 266/280 System Corruption 4% Temperature Cool (78) Movement Treading (480) Ox4 Location -9/Mines Parts ------- > --- POWER (1) -------- Cooled Ion Engine > --- PROPULSION (3) --- Light Treads > --- UTILITY (3) ------ Improved Heat Sink Huge Storage Unit > --- WEAPON (2) ------- Beam Cannon Particle Cannon > --- INVENTORY (25) --- Improved Ion Engine Reinforced Ion Engine Reinforced Ion Engine Cooled Ion Engine Light Treads Light Treads Light Treads Heat Sink Improved Heat Sink Improved Heat Sink Improved Heat Sink Huge Storage Unit High-capacity Battery (250) High-capacity Battery (250) Large Matter Pod (150) Improved Targeting Computer Tractor Beam Spread Laser Spread Laser Heavy Assault Rifle Shotgun Grenade Launcher Grenade Launcher Grenade Launcher Katana Peak State ------------ > --- POWER ------------ Cooled Ion Engine > --- PROPULSION ------- Armored Wheel Armored Wheel Armored Wheel > --- UTILITY ---------- Heat Sink Heat Sink Huge Storage Unit > --- WEAPON ----------- Beam Rifle Beam Rifle > --- INVENTORY -------- Ion Engine Light Nuclear Core Light Treads Light Treads Light Treads Light Treads Light Treads Huge Storage Unit High-capacity Battery High-capacity Battery Large Matter Pod Tractor Beam Beam Cannon Light Assault Rifle Light Assault Rifle Heavy Assault Rifle Shotgun Light Cannon Grenade Launcher Grenade Launcher Grenade Launcher Grenade Launcher Grenade Launcher Rocket Launcher Mining Claw [Rating: 19] Favorites ----------- Power Cooled Ion Engine Engine Cooled Ion Engine Power Core Light Nuclear Core Propulsion Light Treads Treads Light Treads Wheel Armored Wheel Utility Huge Storage Unit Device Improved Heat Sink Storage Huge Storage Unit Protection Light Armor Plating Weapon Small Laser Energy Gun Small Laser Energy Cannon Beam Cannon Ballistic Gun Assault Rifle Ballistic Cannon Light Cannon Launcher Grenade Launcher Build | -11 -10 -10 -9 -9 ------- Run | Jun Mat Min Mat Min Slots Evolved 2 | . . . 2 . Power . | . . . . . Propulsion 1 | . . . 1 . Utility 1 | . . . 1 . Weapon . | . . . . . Parts Attached 97 | 6 7 10 68 6 Power 11 | 1 2 1 7 . Engine 7 | 1 1 . 5 . Core 4 | . 1 1 2 . Reactor . | . . . . . Propulsion 20 | 2 1 1 13 3 Treads 17 | 2 1 1 10 3 Leg . | . . . . . Wheel 3 | . . . 3 . Hover . | . . . . . Flight . | . . . . . Utility 25 | 1 2 3 18 1 Device 12 | . . 1 11 . Storage 6 | 1 1 1 3 . Processor . | . . . . . Hackware . | . . . . . Protection 7 | . 1 1 4 1 Artifact . | . . . . . Weapon 41 | 2 2 5 30 2 Energy Gun 14 | 1 . 3 10 . Energy Cannon 10 | . . . 9 1 Ballistic Gun 3 | 1 1 . 1 . Ballistic Cannon 1 | . . . 1 . Launcher 13 | . 1 2 9 1 Special Weapon . | . . . . . Impact Weapon . | . . . . . Slashing Weapon . | . . . . . Piercing Weapon . | . . . . . Special Melee Weapon . | . . . . . Unidentified Prototypes 3 | . . . 3 . Parts Lost 21 | . . 3 11 7 Power 4 | . . . 4 . Propulsion 6 | . . 1 1 4 Utility 6 | . . 1 3 2 Weapon 5 | . . 1 3 1 Highest Loss Streak 3 | . . 2 3 3 To Critical Strikes 1 | . . . . 1 Average Slot Usage (%) 99 | . 97 99 99 99 Engine 8 | . 9 . 10 11 Core 3 | . 4 14 . . Treads 29 | . 27 27 29 32 Wheel 1 | . . . 3 . Device 7 | . . 1 11 11 Storage 13 | . 16 16 12 11 Protection 9 | . 8 9 9 10 Energy Gun 13 | . 14 26 10 . Energy Cannon 6 | . . . 9 21 Ballistic Gun 3 | . 13 1 . . Naked Turns . | . . . . . Heaviest Build 99 | 13 93 91 99 99 Greatest Support 60 | 40 40 40 60 60 Greatest Overweight (x) 4 | 4 2 2 4 1 Average Overweight (x) 1 | . 1 2 1 1 Largest Inventory Capacity 25 | 8 25 25 25 25 Average Capacity 24 | 7 22 25 25 25 Most Carried 25 | 6 25 25 25 25 Average Carried 22 | 3 16 24 24 24 Final Capacity 25 | 8 25 25 25 25 Final Carried 25 | 6 25 25 25 25 Class Distribution -------------------- 52% | Mutant 47% | Scavenger-Mutant Dominant Class ---------------- Mutant | -10/Materials Mutant | -10/Mines Scavenger-Mutant | -9/Materials Scavenger-Mutant | -9/Mines Resources | -11 -10 -10 -9 -9 ----------- Run | Jun Mat Min Mat Min Matter Collected 2021 | 194 299 316 1038 174 Remotely 352 | . . . 352 . Salvage Created 5817 | . 360 232 4947 278 Parts 345 | . 19 20 293 13 Haulers Intercepted 7 | . 2 . 5 . Recyclers Shooed 13 | . 1 . 12 . Parts Field Recycled . | . . . . . Retrieved Matter . | . . . . . Parts Self-Destructed . | . . . . . Prevented . | . . . . . Kills | -11 -10 -10 -9 -9 ------- Run | Jun Mat Min Mat Min Combat Hostiles Destroyed 83 | . 8 10 54 11 Guns 26 | . 7 4 15 . Cannons 28 | . . . 22 6 AOE 28 | . 1 6 17 4 Classes Destroyed 15 | . 3 . 11 1 Worker 39 | . . . 39 . Builder 22 | . . . 22 . Tunneler 4 | . . . 4 . Hauler 7 | . 2 . 5 . Recycler 22 | . . . 22 . Mechanic 1 | . . . 1 . Operator 3 | . . . 3 . Watcher 5 | . . . 5 . Swarmer 15 | . 3 6 3 3 Grunt 51 | . 5 4 36 6 Brawler 4 | . . . 3 1 Duelist 1 | . . . 1 . Protector 1 | . . . 1 . Sentry 10 | . . . 10 . Demolisher 1 | . . . . 1 Best Kill Streak 13 | . 3 3 13 3 Combat Bots Only 5 | . 3 3 5 3 Max Kills in Single Turn 3 | . 1 3 3 2 Gunslinging . | . . . . . Exploded 3 | . 1 3 2 2 Melee . | . . . . . Uniques/NPCs Destroyed . | . . . . . Combat | -11 -10 -10 -9 -9 -------- Run | Jun Mat Min Mat Min Damage Taken 3725 | . 324 466 1902 1033 Core 505 | . 29 71 261 144 Absorbed by Shields . | . . . . . Regen/Repaired (Parts) 295 | . 102 . 193 . Core Remaining (%) 80 | 100 . 60 . . Volleys Fired 416 | . 33 30 322 31 Largest 2 | . 2 2 2 2 Hottest 133 | . 60 80 133 128 Shots Fired 791 | . 64 57 612 58 Gun 394 | . 62 54 278 . Cannon 366 | . . . 313 53 Launcher 31 | . 2 3 21 5 Special . | . . . . . Kinetic 103 | . 31 17 55 . Thermal 657 | . 31 37 536 53 Explosive 31 | . 2 3 21 5 Electromagnetic . | . . . . . Robot Hit Streak 20 | . 8 13 20 10 Robot Miss Streak 11 | . 2 4 11 5 Penetration Max . | . . . . . Secondary Targets 1 | . . 1 . . Max Gunslinging Chain 1 | . . 1 . . Shots Hit Robots 547 | . 44 40 427 36 Core Hits 379 | . 19 16 330 14 Critical Kills 3 | . 1 . 2 . Critical Parts Destroyed . | . . . . . Critical Strikes 8 | . 1 . 7 . Burn 5 | . . . 5 . Meltdown 2 | . . . 2 . Destroy 1 | . 1 . . . Melee Attacks . | . . . . . Impact . | . . . . . Slashing . | . . . . . Piercing . | . . . . . Sneak Attacks . | . . . . . Combat Hostiles . | . . . . . Follow-up Attacks . | . . . . . Damage Inflicted 10354 | . 590 686 7923 1155 Guns 4012 | . 505 432 3075 . Cannons 4134 | . . . 3536 598 Explosions 2208 | . 85 254 1312 557 Melee . | . . . . . Ramming . | . . . . . Kinetic 1022 | . 264 165 593 . Thermal 7216 | . 241 267 6018 690 Explosive 2116 | . 85 254 1312 465 Electromagnetic . | . . . . . Impact . | . . . . . Slashing . | . . . . . Piercing . | . . . . . Highest Corruption 4 | . . . 1 4 Average Corruption 1 | . . . 1 3 Corruption Purged . | . . . . . Corruption Blocked . | . . . . . Effects 32 | . . . 19 13 Message Errors 8 | . . . 5 3 Matter Fused 7 | . . . 4 3 Heat Flow Errors 4 | . . . 3 1 Energy Discharges 3 | . . . 1 2 Parts Rejected 2 | . . . 2 . Data Loss (minor) 4 | . . . 2 2 Misfires 2 | . . . 1 1 Alerts 2 | . . . 1 1 Overload Shots . | . . . . . Overflow Damage 89 | . . . 49 40 Projectiles 39 | . . . 18 21 Explosions 50 | . . . 31 19 Melee . | . . . . . Knockbacks 2 | . . . 2 . Impact . | . . . . . Kinetic 2 | . . . 2 . Secondary . | . . . . . Self-Inflicted Damage 119 | . 24 . . 95 Shots 6 | . 1 . . 5 Rammed . | . . . . . Targets Rammed . | . . . . . Kicked . | . . . . . Crushed . | . . . . . Highest Temperature 312 | . 78 303 312 207 Average Temperature 52 | . 36 123 44 43 Received Heat Transfer 1197 | . 129 219 774 75 Siege Activations . | . . . . . Robots Corrupted . | . . . . . Combat Hostiles . | . . . . . Parts Fried . | . . . . . Impact Corruptions . | . . . . . Robots Melted 3 | . . . 2 1 Combat Hostiles 1 | . . . . 1 Parts Melted 28 | . . 1 25 2 Heat Transferred 14384 | . 550 625 11925 1284 Parts Sabotaged . | . . . . . Parts Stolen . | . . . . . Parts Stripped . | . . . . . Power Chain Reactions . | . . . . . Missiles Intercepted . | . . . . . Alert | -11 -10 -10 -9 -9 ------- Run | Jun Mat Min Mat Min Peak Influence 1426 | . 164 177 1426 792 Initial 555 | . . . . 555 Average 370 | . 45 31 559 658 Maximum Alert Level 4 | . . . 4 3 Low Security (%) 45 | 100 100 100 14 . Level 1 19 | . . . 36 . Level 2 11 | . . . 11 58 Level 3 19 | . . . 29 41 Level 4 4 | . . . 8 . Level 5 . | . . . . . High Security . | . . . . . Max Security . | . . . . . Sterilizations 1 | . . . 1 . Squads Dispatched 14 | . . . 13 1 Investigation 6 | . . . 6 . Extermination . | . . . . . Reinforcement 5 | . . . 4 1 Assault 3 | . . . 3 . Garrison . | . . . . . Intercept . | . . . . . Searches Triggered . | . . . . . Construction Impeded 2 | . . . 1 1 Haulers Reinforced . | . . . . . Active Scanning Responses . | . . . . . Cargo Convoy Interrupts . | . . . . . Stealth | -11 -10 -10 -9 -9 --------- Run | Jun Mat Min Mat Min Distress Signals 12 | . 2 1 9 . Communications Jammed . | . . . . . Distress Signals . | . . . . . Times Spotted 135 | . 19 11 93 12 Peak Tracking Total 7 | . 7 3 6 3 Tactical Retreats 6 | . 1 1 4 . Traps | -11 -10 -10 -9 -9 ------- Run | Jun Mat Min Mat Min Traps Triggered 1 | . . . 1 . Indirectly . | . . . . . Trap Hack Attempts . | . . . . . Triggered . | . . . . . Disarmed . | . . . . . Reprogrammed 6 | . . . 6 . Reused . | . . . . . Traps Extracted . | . . . . . Installed . | . . . . . Triggered . | . . . . . Machines | -11 -10 -10 -9 -9 ---------- Run | Jun Mat Min Mat Min Machines Disabled 9 | . . 1 7 1 Max in Single Turn 3 | . . 1 3 1 Machines Repaired 3 | . . . 3 . Machines Sabotaged . | . . . . . Overloaded Fab Kills . | . . . . . Hacking | -11 -10 -10 -9 -9 --------- Run | Jun Mat Min Mat Min Machines Accessed 21 | . 9 . 12 . Terminals 17 | . 8 . 9 . Fabricators . | . . . . . Repair Stations 3 | . 1 . 2 . Recycling Units 1 | . . . 1 . Scanalyzers . | . . . . . Garrison Access . | . . . . . Total Hacks 57 | . 20 . 37 . Successful 34 | . 9 . 25 . Failed 22 | . 11 . 11 . Catastrophic 10 | . 7 . 3 . Database Lockouts 1 | . . . 1 . Manual 29 | . 7 . 22 . Terminals 45 | . 16 . 29 . Fabricators . | . . . . . Repair Stations 9 | . 4 . 5 . Recycling Units 3 | . . . 3 . Scanalyzers . | . . . . . Garrison Access . | . . . . . Terminal Hacks 20 | . 5 . 15 . Part Schematic 2 | . 1 . 1 . Branch Access Points 2 | . 1 . 1 . Terminal Index 2 | . 1 . 1 . Alert Level 3 | . . . 3 . Unreport Threat 1 | . . . 1 . Locate Traps 2 | . . . 2 . Reprogram Traps 1 | . . . 1 . Maintenance Status 1 | . . . 1 . Patrol Status 1 | . . . 1 . Reinforcement Status 1 | . . . 1 . Assault Status 1 | . . . 1 . Hauler Manifests 1 | . 1 . . . Registered Components 1 | . 1 . . . Zone Layout 1 | . . . 1 . Fabricator Hacks . | . . . . . Repair Station Hacks 8 | . 4 . 4 . Scan Component 4 | . 2 . 2 . Repair 4 | . 2 . 2 . Recycling Unit Hacks . | . . . . . Scanalyzer . | . . . . . Garrison Access Hacks . | . . . . . Unauthorized Hacks 6 | . . . 6 . Terminals 4 | . . . 4 . Sabotage 4 | . . . 4 . Fabricators . | . . . . . Repair Stations . | . . . . . Recycling Units 2 | . . . 2 . Reject 1 | . . . 1 . Mask 1 | . . . 1 . Scanalyzers . | . . . . . Garrison Access . | . . . . . Data Cores Recovered . | . . . . . Used . | . . . . . Hacking Detections 20 | . 9 . 11 . Full Trace Events 2 | . . . 2 . Feedback Events 1 | . . . 1 . Corruption 1 | . . . 1 . Feedback Blocked . | . . . . . Robot Schematics Acquired . | . . . . . Robots Built . | . . . . . Authchips . | . . . . . Time . | . . . . . Total Robot Build Rating . | . . . . . Part Schematics Acquired 2 | . 1 . 1 . Parts Built . | . . . . . Authchips . | . . . . . Time . | . . . . . Total Part Build Rating . | . . . . . Parts Repaired 4 | . 2 . 2 . Time 104 | . 52 . 52 . Parts Recycled . | . . . . . Recycled Matter . | . . . . . Retrieved Matter . | . . . . . Retrieved Components . | . . . . . Parts Scanalyzed . | . . . . . Part Schematics Acquired . | . . . . . Parts Damaged . | . . . . . Bothacking | -11 -10 -10 -9 -9 ------------ Run | Jun Mat Min Mat Min Used RIF Installer . | . . . . . Robots Hacked . | . . . . . Non-combat . | . . . . . Combat . | . . . . . Robot Hacks Applied . | . . . . . Relay Couplers Released . | . . . . . Fabnet Peak Effective % . | . . . . . Robots Rewired . | . . . . . Allies Hacked . | . . . . . Hacks Repelled . | . . . . . Allies | -11 -10 -10 -9 -9 -------- Run | Jun Mat Min Mat Min Total Allies . | . . . . . Largest Group . | . . . . . Highest-Rated Group . | . . . . . Highest-Rated Ally . | . . . . . Total Orders . | . . . . . Ally Attacks . | . . . . . Total Damage . | . . . . . Kills . | . . . . . Allies Corrupted . | . . . . . Allies Melted . | . . . . . Intel | -11 -10 -10 -9 -9 ------- Run | Jun Mat Min Mat Min Robot Analysis Total . | . . . . . Derelict Logs Recovered 1 | . . 1 . . Drone Launches . | . . . . . Drone Recoveries . | . . . . . Exploration | -11 -10 -10 -9 -9 ------------- Run | Jun Mat Min Mat Min Turns Passed 9080 | 76 1666 1692 4856 790 Spaces Moved 2863 | 38 501 492 1546 286 Core 10 | 10 . . . . Treads 2629 | 28 501 492 1322 286 Legs . | . . . . . Wheels 224 | . . . 224 . Hover . | . . . . . Flight . | . . . . . Fastest Speed 50 | 50 160 320 120 240 Average Speed 250 | 162 281 320 222 240 Slowest Speed 320 | 250 320 320 240 240 Overloaded Moves . | . . . . . Propulsion Burnouts . | . . . . . Robots Hopped . | . . . . . Cave-ins Triggered . | . . . . . Exploration Rate (%) 70 | 4 92 99 91 64 Regions Visited 4 Branch Regions 2 Pre-discovered Areas 2 | . . 2 . . Known Exits Taken 2 | . 1 . 1 . Unknown Exits Taken 2 | 1 . 1 . . Scrap Searched 2 | . . 1 . 1 Spaces Dug . | . . . . . Terrain Destroyed 111 | . 6 22 42 41 Melee . | . . . . . Projectile 3 | . . . 2 1 AOE 108 | . 6 22 40 40 Terrain Rammed . | . . . . . Walls Destroyed . | . . . . . Machines Disabled . | . . . . . Actions | -11 -10 -10 -9 -9 --------- Run | Jun Mat Min Mat Min Total 3995 | 49 690 556 2367 333 Wait 468 | . 126 5 330 7 Move 2859 | 37 500 491 1545 286 Hop . | . . . . . Pick Up 83 | 6 21 11 42 3 Fast Attach 21 | 6 2 . 13 . Attach 21 | . . 3 14 4 Detach 4 | . . . 4 . Swap 57 | . 5 7 43 2 Drop 66 | . 3 9 54 . Fire 416 | . 33 30 322 31 Melee . | . . . . . Ram . | . . . . . Kick . | . . . . . Crush . | . . . . . Escape Stasis . | . . . . . Rewire . | . . . . . Trap . | . . . . . Miscellaneous . | . . . . . Route ------- -11/Junkyard -10/Materials (discovered 5 exits: *Mat x3 / *Min x2) -10/Mines (discovered 3 exits: *Mat x2 / [*Sub]) -9/Materials (discovered 3 exits: [*Mat x2] / *Min) -9/Mines (discovered 2 exits: [*Mat x2]) History --------- Turn | Location | Event 49 | -11/Junkyard | Discovered new exit (range 15) 77 | -11/Junkyard | Entered Materials 124 | -10/Materials | Identified exit to Mines 315 | -10/Materials | Build established: Mutant 774 | -10/Materials | Discovered new exit (range 12) 856 | -10/Materials | Repaired Lgt. Treads 884 | -10/Materials | Repaired Lgt. Treads 1168 | -10/Materials | Discovered new exit (range 8) 1308 | -10/Materials | Discovered new exit (range 15) 1743 | -10/Materials | Entered Mines 2064 | -10/Mines | Learned location of Storage (-8) 2580 | -10/Mines | Learned location of Zion (-6) 3153 | -10/Mines | Discovered new exit (range 5) 3164 | -10/Mines | Discovered new exit (range 15) 3296 | -10/Mines | Discovered new exit (range 6) 3299 | -10/Mines | Received a Rocket Launcher from a helpful Derelict 3435 | -10/Mines | Entered Materials 3435 | -9/Materials | Evolved 2 slots: Propulsion x1, Utility x1 3878 | -9/Materials | Discovered new exit (range 16) 3940 | -9/Materials | Build established: Scavenger-Mutant 4449 | -9/Materials | Lost 3 parts (1u2w) 4525 | -9/Materials | Core integrity fell below 50% 5015 | -9/Materials | Identified exit to Mines 5046 | -9/Materials | Central database locked down 6868 | -9/Materials | Discovered new exit (range 16) 7258 | -9/Materials | Discovered new exit (range 16) 7636 | -9/Materials | Build established: Mutant 7669 | -9/Materials | Repaired Huge Storage Unit 7696 | -9/Materials | Repaired Lgt. Armor Plating 7835 | -9/Materials | First assault squad dispatched 8269 | -9/Materials | Sterilization system engaged 8269 | -9/Materials | Non-combat units ordered to evacuate 8291 | -9/Materials | Entered Mines 8381 | -9/Mines | Discovered new exit (range 5) 8696 | -9/Mines | Build established: Scavenger-Mutant 8917 | -9/Mines | Discovered new exit (range 15) 9008 | -9/Mines | Assembled infested the area 9067 | -9/Mines | Core integrity fell below 20% 9081 | -9/Mines | Destroyed by D-53 Grenadier with Mini Grenade Launcher Last Messages --------------- 09057_ Lgt. Armor Plating destroyed. 09057_ K-01 Serf destroyed. 09058_ U-05 Engineer builds a Wall. 09061_ U-05 Engineer destroyed. 09066_ The unstable cave ceiling collapses. 09066_ Lgt. Treads destroyed. 09068_ The unstable cave ceiling collapses. 09072_ T-07 Excavator destroyed. 09075_ U-05 Engineer lays Concrete. 09076_ K-01 Serf collects debris. 09076_ U-05 Engineer builds a Wall. 09077_ The unstable cave ceiling collapses. 09077_ K-01 Serf collects debris. 09077_ U-05 Engineer lays Concrete. 09078_ The unstable cave ceiling collapses. 09078_ U-05 Engineer lays Concrete. 09079_ Lgt. Treads destroyed. 09080_ The unstable cave ceiling collapses. 09080_ U-05 Engineer builds a Wall. 09080_ U-05 Engineer lays Concrete. Map ----- +----------------------------------------------------+ | | | | | | | | | | | | | | | | | ?????????????????????????????????????????????????? | | ?????????????????????????????????????????????????? | | ?????????????????????????????????????????????????? | | ?????????????????????????????????????????????????? | | ?????????????????????????????????????????????????? | | ???????????????????????????????? ??????????????? | | ??????????????????????????????? ?????????????? | | ??????????###?????????????????? ??????????????? | | ??????????# ###????????????## ???????????????? | | ????????### #???####????? # #???????????????? | | ??????### # #??## ##???# ; ##??????????????? | | ?????## ]## ##### #??#; ##?????????????? | | ?????# !#### ;= % #?????????????? | | ?????## < ## %! #?????????????? | | ??????## ## d #?????????????? | | ???????## [ /=uu #?????????????? | | ????????## k = k #??????????????? | | ?????????#### # @ ;;;;#??????????????? | | ???????????## # ####???????????????? | | ??????????## [ r #??????????????????? | | ??????????# ### ## ##??????????????????? | | ??????????# ###?# ##???????????????????? | | ??????????# ##???# ######????????????????????? | | ??????????## ###????# ###???????????????????????? | | ???????????# #??????# #???????????????????????? | | ???????????# #??????### #???????????????????????? | | ???????????# #????????# #???????????????????????? | | ???????????# #????????# #???????????????????????? | | ???????????# #????????# #???????????????????????? | | ???????????# #????????# #???????????????????????? | | ???????????# #????????# #???????????????????????? | | ???????????# #???????? =%???????????????????????? | | ?########??# #???????? *???????????????????????? | | ?# #??# #???????? ???????????????????????? | | ?# #### #??# #???????? ???????????????????????? | | ?# ##?# #??# #???????? ???????????????????????? | | ## ### #??# #????????###???????????????????????? | | # ## #### #??????????????????????????????????? | | # ## #??????????????????????????????????? | | # ###### #?????????#### ????????????????????? | | # ##??# #????????# ?????????????????????? | | ## ##?# #???????# ??????????????????????? | +----------------------------------------------------+ Best States ------------- Heat Dissipation 48 Energy Generation 14 Energy Capacity 530 Matter Stores 300 Matter Capacity 300 Sight Range 16 Terrain Scan Density 10 Armor Coverage 150 Evasion (%) 40 Recoil Reduction 3 Item Schematics ----------------- Huge Storage Unit | -10/Materials | Hacked Cargo Storage Unit | -9/Materials | Hacked Robot Schematics ------------------ None Fabricated ------------ Nothing Alien Tech Used ----------------- None Achievements -------------- None Challenges ------------ None Game ------ Seed WardroneDecoderSink Manual? 0 Play Time 01:03:34 Cumulative 108.3 hours Start 2023.07.19 @ 01:29:07 End 2023.07.19 @ 02:36:06 Sessions 1 Manual Loads 0 Difficulty Rogue Special Mode None Game No. 93 Rogue 93 Adventurer 0 Explorer 0 Win Type - Total 6 Types 5/0/1/0/0/0/0/0/0 Lore% 63 Gallery% 62 Achievement% 57 Wizard Run 0 Options --------- ASCII 0 Keyboard 1 Movement Vi Keybinds 0 Fullscreen 1 Font 24/Smallcaps Map View 76x50 Tactical HUD 1 Map Filters NONE Filters NONE Steam 1 RUN: 69a21b98-c1f3-4f79-b0d8-1ed691d11fa4